Workbook

Sheet Abundances
A1: Group | B1: Shammah_non_users | C1: Shammah_non_users | D1: Shammah_non_users | E1: Shammah_non_users | F1: Shammah_non_users | G1: Shammah_non_users | H1: Shammah_non_users | I1: Shammah_non_users | J1: Shammah_non_users | K1: Shammah_non_users | L1: Shammah_non_users | M1: Shammah_non_users | N1: Shammah_non_users | O1: Shammah_non_users | P1: Shammah_non_users | Q1: Shammah_non_users | R1: Shammah_non_users | S1: Shammah_non_users | T1: Shammah_non_users | U1: Shammah_non_users | V1: Shammah_non_users | W1: Shammah_non_users | X1: Shammah_non_users | Y1: Shammah_users | Z1: Shammah_users | AA1: Shammah_users | AB1: Shammah_users | AC1: Shammah_users | AD1: Shammah_users | AE1: Shammah_users | AF1: Shammah_users | AG1: Shammah_users | AH1: Shammah_users | AI1: Shammah_users | AJ1: Shammah_users | AK1: Shammah_users | AL1: Shammah_users | AM1: Shammah_users | AN1: Shammah_users | AO1: Shammah_users | AP1: Shammah_users | AQ1: Shammah_users | AR1: Shammah_users | AS1: Shammah_users | AT1: Shammah_users | AU1: Shammah_users | AV1: Shammah_users | AW1: Shammah_users | AX1: Shammah_users | AY1: Shammah_users | AZ1: Shammah_users | BA1: Shammah_users
A2: ID | B2: E1 | C2: E10 | D2: E11 | E2: E12 | F2: E13 | G2: E2 | H2: E3 | I2: E4 | J2: E40 | K2: E41 | L2: E43 | M2: E44 | N2: E45 | O2: E46 | P2: E47 | Q2: E48 | R2: E5 | S2: E51 | T2: E54 | U2: E6 | V2: E7 | W2: E8 | X2: E9 | Y2: E14 | Z2: E15 | AA2: E16 | AB2: E17 | AC2: E18 | AD2: E19 | AE2: E20 | AF2: E21 | AG2: E22 | AH2: E23 | AI2: E24 | AJ2: E25 | AK2: E26 | AL2: E27 | AM2: E28 | AN2: E29 | AO2: E30 | AP2: E31 | AQ2: E32 | AR2: E33 | AS2: E34 | AT2: E36 | AU2: E37 | AV2: E38 | AW2: E39 | AX2: E42 | AY2: E49 | AZ2: E50 | BA2: E53 | BB2: Non-users | BC2: Shammah users
A3: Firmicutes | B3: 0.426410835 | C3: 0.387614018 | D3: 0.294209431 | E3: 0.256341499 | F3: 0.366047127 | G3: 0.323372584 | H3: 0.45505711 | I3: 0.384833585 | J3: 0.380701892 | K3: 0.518156791 | L3: 0.355330694 | M3: 0.430021037 | N3: 0.463716473 | O3: 0.590540367 | P3: 0.312092922 | Q3: 0.273476112 | R3: 0.333388663 | S3: 0.487345041 | T3: 0.339627624 | U3: 0.438741183 | V3: 0.268859445 | W3: 0.360628422 | X3: 0.311091303 | Y3: 0.309625996 | Z3: 0.450466548 | AA3: 0.39322232 | AB3: 0.537497359 | AC3: 0.513236169 | AD3: 0.407644871 | AE3: 0.482057636 | AF3: 0.379545614 | AG3: 0.370223173 | AH3: 0.322496836 | AI3: 0.566343042 | AJ3: 0.491692052 | AK3: 0.529835318 | AL3: 0.309166283 | AM3: 0.449421488 | AN3: 0.525466932 | AO3: 0.446368967 | AP3: 0.347160533 | AQ3: 0.402099071 | AR3: 0.408259748 | AS3: 0.413659105 | AT3: 0.400643651 | AU3: 0.311867651 | AV3: 0.40155603 | AW3: 0.372142967 | AX3: 0.372234403 | AY3: 0.363214973 | AZ3: 0.375335697 | BA3: 0.458371041 | BB3: =AVERAGE(B3:X3) -> 38.08% | BC3: =AVERAGE(Y3:BA3) -> 41.76%
A4: Actinobacteria | B4: 0.285327314 | C4: 0.117906865 | D4: 0.155339806 | E4: 0.156906798 | F4: 0.094952951 | G4: 0.318929127 | H4: 0.142415715 | I4: 0.034984871 | J4: 0.043966397 | K4: 0.088489775 | L4: 0.1338906 | M4: 0.198242792 | N4: 0.233688063 | O4: 0.311472595 | P4: 0.182479375 | Q4: 0.378659232 | R4: 0.065399618 | S4: 0.142239153 | T4: 0.099036049 | U4: 0.149104721 | V4: 0.179705706 | W4: 0.258569388 | X4: 0.239271616 | Y4: 0.202067093 | Z4: 0.227913441 | AA4: 0.238289999 | AB4: 0.209210619 | AC4: 0.244199881 | AD4: 0.263752937 | AE4: 0.424054699 | AF4: 0.199549835 | AG4: 0.202996026 | AH4: 0.251615482 | AI4: 0.277912621 | AJ4: 0.248961507 | AK4: 0.11862836 | AL4: 0.194610778 | AM4: 0.300413223 | AN4: 0.261806553 | AO4: 0.327830401 | AP4: 0.291798858 | AQ4: 0.224313123 | AR4: 0.056888333 | AS4: 0.093748482 | AT4: 0.185078994 | AU4: 0.223202078 | AV4: 0.129752792 | AW4: 0.231630618 | AX4: 0.176101256 | AY4: 0.183575302 | AZ4: 0.097432592 | BA4: 0.351764706 | BB4: =AVERAGE(B4:X4) -> 17.44% | BC4: =AVERAGE(Y4:BA4) -> 22.20%
A5: Proteobacteria | B5: 0.060158014 | C5: 0.248199712 | D5: 0.095873786 | E5: 0.126685027 | F5: 0.132280893 | G5: 0.163741391 | H5: 0.050433151 | I5: 0.176815431 | J5: 0.199419015 | K5: 0.200117986 | L5: 0.307327565 | M5: 0.260301943 | N5: 0.145952713 | O5: 0.023734924 | P5: 0.056719496 | Q5: 0.248130782 | R5: 0.180346917 | S5: 0.001872417 | T5: 0.235837845 | U5: 0.099620184 | V5: 0.195752047 | W5: 0.25327303 | X5: 0.075767223 | Y5: 0.300954717 | Z5: 0.12016081 | AA5: 0.219982472 | AB5: 0.165270051 | AC5: 0.088935158 | AD5: 0.025939702 | AE5: 0.026248164 | AF5: 0.232679187 | AG5: 0.144960766 | AH5: 0.146092865 | AI5: 0.105245415 | AJ5: 0.077956245 | AK5: 0.198189207 | AL5: 0.171856287 | AM5: 0.010247934 | AN5: 0.186680261 | AO5: 0.002616148 | AP5: 0.099936548 | AQ5: 0.183167324 | AR5: 0.106392123 | AS5: 0.252295138 | AT5: 0.155002926 | AU5: 0.005537326 | AV5: 0.225498808 | AW5: 0.128010431 | AX5: 0.148993422 | AY5: 0.204302956 | AZ5: 0.374691159 | BA5: 0.113665158 | BB5: =AVERAGE(B5:X5) -> 15.38% | BC5: =AVERAGE(Y5:BA5) -> 14.56%
A6: Fusobacteria | B6: 0.121557562 | C6: 0.19337494 | D6: 0.289355062 | E6: 0.210755182 | F6: 0.17443036 | G6: 0.103643635 | H6: 0.137118579 | I6: 0.171772567 | J6: 0.109680459 | K6: 0.086719979 | L6: 0.117808085 | M6: 0.078146269 | N6: 0.101170126 | O6: 0.017640242 | P6: 0.304982631 | Q6: 0.070713471 | R6: 0.179019006 | S6: 0.109116736 | T6: 0.152119371 | U6: 0.231253391 | V6: 0.19069179 | W6: 0.101701976 | X6: 0.202088374 | Y6: 0.074713147 | Z6: 0.084723049 | AA6: 0.047716428 | AB6: 0.009788043 | AC6: 0.102766211 | AD6: 0.217550901 | AE6: 0.021705213 | AF6: 0.109938806 | AG6: 0.109854275 | AH6: 0.261408301 | AI6: 0.027170982 | AJ6: 0.115480476 | AK6: 0.066086833 | AL6: 0.274666053 | AM6: 0.117355372 | AN6: 0.012652361 | AO6: 0.048894903 | AP6: 0.195590102 | AQ6: 0.092887225 | AR6: 0.252168477 | AS6: 0.134405207 | AT6: 0.114803979 | AU6: 0.232704403 | AV6: 0.136027105 | AW6: 0.15002301 | AX6: 0.167231413 | AY6: 0.07145356 | AZ6: 0.067569019 | BA6: 0.046063348 | BB6: =AVERAGE(B6:X6) -> 15.02% | BC6: =AVERAGE(Y6:BA6) -> 11.60%
A7: Bacteroidetes | B7: 0.101128668 | C7: 0.028324532 | D7: 0.16331484 | E7: 0.23430932 | F7: 0.215957695 | G7: 0.088980227 | H7: 0.197925288 | I7: 0.225920323 | J7: 0.254141478 | K7: 0.102189303 | L7: 0.078506135 | M7: 0.027966836 | N7: 0.048779313 | O7: 0.033692433 | P7: 0.104917499 | Q7: 0.02686605 | R7: 0.235040252 | S7: 0.25316374 | T7: 0.158721775 | U7: 0.07965274 | V7: 0.159930754 | W7: 0.022851702 | X7: 0.160193557 | Y7: 0.103617413 | Z7: 0.102789359 | AA7: 0.099717597 | AB7: 0.077600169 | AC7: 0.048631767 | AD7: 0.074295223 | AE7: 0.043456314 | AF7: 0.073292537 | AG7: 0.162947111 | AH7: 0.012524149 | AI7: 0.021912082 | AJ7: 0.063971199 | AK7: 0.081842162 | AL7: 0.045370797 | AM7: 0.118760331 | AN7: 0.011308338 | AO7: 0.173928733 | AP7: 0.060517132 | AQ7: 0.09399024 | AR7: 0.147026647 | AS7: 0.095059989 | AT7: 0.131480398 | AU7: 0.205769757 | AV7: 0.087463923 | AW7: 0.115278417 | AX7: 0.126569663 | AY7: 0.173342662 | AZ7: 0.074551509 | BA7: 0.026153846 | BB7: =AVERAGE(B7:X7) -> 13.05% | BC7: =AVERAGE(Y7:BA7) -> 9.15%
A8: Saccharibacteria_(TM7) | B8: 0.002031603 | C8: 0.024579933 | D8: 0.001907074 | E8: 0.014132483 | F8: 0.015942142 | G8: 0.001333037 | H8: 0.016498372 | I8: 0.00434947 | J8: 0.004789197 | K8: 0.003801783 | L8: 0.006452559 | M8: 0.00507363 | N8: 0.006356238 | O8: 0.004807073 | P8: 0.038699522 | Q8: 0.002154353 | R8: 0.005394639 | S8: 0.002259814 | T8: 0.006470355 | U8: 0.001193706 | V8: 0.000266329 | W8: 0.002975482 | X8: 0.011333248 | Y8: 0.004992555 | Z8: 0.008139766 | AA8: 0.000681663 | AB8: 0.000492923 | AC8: 0.002082094 | AD8: 0.006411511 | AE8: 0.002386197 | AF8: 0.004923683 | AG8: 0.003821461 | AH8: 0.005862368 | AI8: 0.001078749 | AJ8: 0.001938521 | AK8: 0.00463392 | AL8: 0.00400737 | AM8: 0.003760331 | AN8: 0.002085554 | AO8: 0.000360848 | AP8: 0.003410533 | AQ8: 0.003543018 | AR8: 0.028014378 | AS8: 0.007091854 | AT8: 0.012755998 | AU8: 0.020918786 | AV8: 0.019701343 | AW8: 0.002914557 | AX8: 0.008869843 | AY8: 0.004023089 | AZ8: 0.010312601 | BA8: 0.00280543 | BB8: =AVERAGE(B8:X8) -> 0.79% | BC8: =AVERAGE(Y8:BA8) -> 0.63%
A9: SR1 | B9: 0.003386005 | C9: 0 | D9: 0 | E9: 0.000869691 | F9: 0.000388833 | G9: 0 | H9: 0.000551785 | I9: 0.001260716 | J9: 0.000471069 | K9: 0.000393288 | L9: 0.000586596 | M9: 0.000247494 | N9: 0.000337073 | O9: 0.018112365 | P9: 0.000108554 | Q9: 0 | R9: 0.000414972 | S9: 0.004003099 | T9: 0.006602403 | U9: 0.000434075 | V9: 0.004793928 | W9: 0 | X9: 0.00025468 | Y9: 0.003853902 | Z9: 0.005807028 | AA9: 0.000292141 | AB9: 0.000140835 | AC9: 0.000148721 | AD9: 0.004160141 | AE9: 9.18E-05 | AF9: 7.03E-05 | AG9: 0.005197187 | AH9: 0 | AI9: 0.000337109 | AJ9: 0 | AK9: 0.000499038 | AL9: 0.000322432 | AM9: 4.13E-05 | AN9: 0 | AO9: 0 | AP9: 0.001586294 | AQ9: 0 | AR9: 0.000781433 | AS9: 0.001602953 | AT9: 0.000234055 | AU9: 0 | AV9: 0 | AW9: 0 | AX9: 0 | AY9: 8.75E-05 | AZ9: 0.000107423 | BA9: 0.001085973 | BB9: =AVERAGE(B9:X9) -> 0.19% | BC9: =AVERAGE(Y9:BA9) -> 0.09%
A10: Spirochaetes | B10: 0 | C10: 0 | D10: 0 | E10: 0 | F10: 0 | G10: 0 | H10: 0 | I10: 6.30E-05 | J10: 0.006830494 | K10: 0.000131096 | L10: 9.78E-05 | M10: 0 | N10: 0 | O10: 0 | P10: 0 | Q10: 0 | R10: 0.000995933 | S10: 0 | T10: 0.001584577 | U10: 0 | V10: 0 | W10: 0 | X10: 0 | Y10: 0.000175177 | Z10: 0 | AA10: 9.74E-05 | AB10: 0 | AC10: 0 | AD10: 0.000244714 | AE10: 0 | AF10: 0 | AG10: 0 | AH10: 0 | AI10: 0 | AJ10: 0 | AK10: 0.000285164 | AL10: 0 | AM10: 0 | AN10: 0 | AO10: 0 | AP10: 0 | AQ10: 0 | AR10: 0.00046886 | AS10: 0.002137271 | AT10: 0 | AU10: 0 | AV10: 0 | AW10: 0 | AX10: 0 | AY10: 0 | AZ10: 0 | BA10: 9.05E-05 | BB10: =AVERAGE(B10:X10) -> 0.04% | BC10: =AVERAGE(Y10:BA10) -> 0.01%

Sheet Frequencies
A1: Group | B1: Shammah_non_users | C1: Shammah_non_users | D1: Shammah_non_users | E1: Shammah_non_users | F1: Shammah_non_users | G1: Shammah_non_users | H1: Shammah_non_users | I1: Shammah_non_users | J1: Shammah_non_users | K1: Shammah_non_users | L1: Shammah_non_users | M1: Shammah_non_users | N1: Shammah_non_users | O1: Shammah_non_users | P1: Shammah_non_users | Q1: Shammah_non_users | R1: Shammah_non_users | S1: Shammah_non_users | T1: Shammah_non_users | U1: Shammah_non_users | V1: Shammah_non_users | W1: Shammah_non_users | X1: Shammah_non_users | Y1: Shammah_users | Z1: Shammah_users | AA1: Shammah_users | AB1: Shammah_users | AC1: Shammah_users | AD1: Shammah_users | AE1: Shammah_users | AF1: Shammah_users | AG1: Shammah_users | AH1: Shammah_users | AI1: Shammah_users | AJ1: Shammah_users | AK1: Shammah_users | AL1: Shammah_users | AM1: Shammah_users | AN1: Shammah_users | AO1: Shammah_users | AP1: Shammah_users | AQ1: Shammah_users | AR1: Shammah_users | AS1: Shammah_users | AT1: Shammah_users | AU1: Shammah_users | AV1: Shammah_users | AW1: Shammah_users | AX1: Shammah_users | AY1: Shammah_users | AZ1: Shammah_users | BA1: Shammah_users
A2: ID | B2: E1 | C2: E10 | D2: E11 | E2: E12 | F2: E13 | G2: E2 | H2: E3 | I2: E4 | J2: E40 | K2: E41 | L2: E43 | M2: E44 | N2: E45 | O2: E46 | P2: E47 | Q2: E48 | R2: E5 | S2: E51 | T2: E54 | U2: E6 | V2: E7 | W2: E8 | X2: E9 | Y2: E14 | Z2: E15 | AA2: E16 | AB2: E17 | AC2: E18 | AD2: E19 | AE2: E20 | AF2: E21 | AG2: E22 | AH2: E23 | AI2: E24 | AJ2: E25 | AK2: E26 | AL2: E27 | AM2: E28 | AN2: E29 | AO2: E30 | AP2: E31 | AQ2: E32 | AR2: E33 | AS2: E34 | AT2: E36 | AU2: E37 | AV2: E38 | AW2: E39 | AX2: E42 | AY2: E49 | AZ2: E50 | BA2: E53 | BB2: Non-users | BC2: Shammah users
A3: Actinobacteria | B3: 1 | C3: 1 | D3: 1 | E3: 1 | F3: 1 | G3: 1 | H3: 1 | I3: 1 | J3: 1 | K3: 1 | L3: 1 | M3: 1 | N3: 1 | O3: 1 | P3: 1 | Q3: 1 | R3: 1 | S3: 1 | T3: 1 | U3: 1 | V3: 1 | W3: 1 | X3: 1 | Y3: 1 | Z3: 1 | AA3: 1 | AB3: 1 | AC3: 1 | AD3: 1 | AE3: 1 | AF3: 1 | AG3: 1 | AH3: 1 | AI3: 1 | AJ3: 1 | AK3: 1 | AL3: 1 | AM3: 1 | AN3: 1 | AO3: 1 | AP3: 1 | AQ3: 1 | AR3: 1 | AS3: 1 | AT3: 1 | AU3: 1 | AV3: 1 | AW3: 1 | AX3: 1 | AY3: 1 | AZ3: 1 | BA3: 1 | BB3: =AVERAGE(B3:X3) -> 100.00% | BC3: =AVERAGE(Y3:BA3) -> 100.00%
A4: Bacteroidetes | B4: 1 | C4: 1 | D4: 1 | E4: 1 | F4: 1 | G4: 1 | H4: 1 | I4: 1 | J4: 1 | K4: 1 | L4: 1 | M4: 1 | N4: 1 | O4: 1 | P4: 1 | Q4: 1 | R4: 1 | S4: 1 | T4: 1 | U4: 1 | V4: 1 | W4: 1 | X4: 1 | Y4: 1 | Z4: 1 | AA4: 1 | AB4: 1 | AC4: 1 | AD4: 1 | AE4: 1 | AF4: 1 | AG4: 1 | AH4: 1 | AI4: 1 | AJ4: 1 | AK4: 1 | AL4: 1 | AM4: 1 | AN4: 1 | AO4: 1 | AP4: 1 | AQ4: 1 | AR4: 1 | AS4: 1 | AT4: 1 | AU4: 1 | AV4: 1 | AW4: 1 | AX4: 1 | AY4: 1 | AZ4: 1 | BA4: 1 | BB4: =AVERAGE(B4:X4) -> 100.00% | BC4: =AVERAGE(Y4:BA4) -> 100.00%
A5: Firmicutes | B5: 1 | C5: 1 | D5: 1 | E5: 1 | F5: 1 | G5: 1 | H5: 1 | I5: 1 | J5: 1 | K5: 1 | L5: 1 | M5: 1 | N5: 1 | O5: 1 | P5: 1 | Q5: 1 | R5: 1 | S5: 1 | T5: 1 | U5: 1 | V5: 1 | W5: 1 | X5: 1 | Y5: 1 | Z5: 1 | AA5: 1 | AB5: 1 | AC5: 1 | AD5: 1 | AE5: 1 | AF5: 1 | AG5: 1 | AH5: 1 | AI5: 1 | AJ5: 1 | AK5: 1 | AL5: 1 | AM5: 1 | AN5: 1 | AO5: 1 | AP5: 1 | AQ5: 1 | AR5: 1 | AS5: 1 | AT5: 1 | AU5: 1 | AV5: 1 | AW5: 1 | AX5: 1 | AY5: 1 | AZ5: 1 | BA5: 1 | BB5: =AVERAGE(B5:X5) -> 100.00% | BC5: =AVERAGE(Y5:BA5) -> 100.00%
A6: Fusobacteria | B6: 1 | C6: 1 | D6: 1 | E6: 1 | F6: 1 | G6: 1 | H6: 1 | I6: 1 | J6: 1 | K6: 1 | L6: 1 | M6: 1 | N6: 1 | O6: 1 | P6: 1 | Q6: 1 | R6: 1 | S6: 1 | T6: 1 | U6: 1 | V6: 1 | W6: 1 | X6: 1 | Y6: 1 | Z6: 1 | AA6: 1 | AB6: 1 | AC6: 1 | AD6: 1 | AE6: 1 | AF6: 1 | AG6: 1 | AH6: 1 | AI6: 1 | AJ6: 1 | AK6: 1 | AL6: 1 | AM6: 1 | AN6: 1 | AO6: 1 | AP6: 1 | AQ6: 1 | AR6: 1 | AS6: 1 | AT6: 1 | AU6: 1 | AV6: 1 | AW6: 1 | AX6: 1 | AY6: 1 | AZ6: 1 | BA6: 1 | BB6: =AVERAGE(B6:X6) -> 100.00% | BC6: =AVERAGE(Y6:BA6) -> 100.00%
A7: Proteobacteria | B7: 1 | C7: 1 | D7: 1 | E7: 1 | F7: 1 | G7: 1 | H7: 1 | I7: 1 | J7: 1 | K7: 1 | L7: 1 | M7: 1 | N7: 1 | O7: 1 | P7: 1 | Q7: 1 | R7: 1 | S7: 1 | T7: 1 | U7: 1 | V7: 1 | W7: 1 | X7: 1 | Y7: 1 | Z7: 1 | AA7: 1 | AB7: 1 | AC7: 1 | AD7: 1 | AE7: 1 | AF7: 1 | AG7: 1 | AH7: 1 | AI7: 1 | AJ7: 1 | AK7: 1 | AL7: 1 | AM7: 1 | AN7: 1 | AO7: 1 | AP7: 1 | AQ7: 1 | AR7: 1 | AS7: 1 | AT7: 1 | AU7: 1 | AV7: 1 | AW7: 1 | AX7: 1 | AY7: 1 | AZ7: 1 | BA7: 1 | BB7: =AVERAGE(B7:X7) -> 100.00% | BC7: =AVERAGE(Y7:BA7) -> 100.00%
A8: Saccharibacteria_(TM7) | B8: 1 | C8: 1 | D8: 1 | E8: 1 | F8: 1 | G8: 1 | H8: 1 | I8: 1 | J8: 1 | K8: 1 | L8: 1 | M8: 1 | N8: 1 | O8: 1 | P8: 1 | Q8: 1 | R8: 1 | S8: 1 | T8: 1 | U8: 1 | V8: 1 | W8: 1 | X8: 1 | Y8: 1 | Z8: 1 | AA8: 1 | AB8: 1 | AC8: 1 | AD8: 1 | AE8: 1 | AF8: 1 | AG8: 1 | AH8: 1 | AI8: 1 | AJ8: 1 | AK8: 1 | AL8: 1 | AM8: 1 | AN8: 1 | AO8: 1 | AP8: 1 | AQ8: 1 | AR8: 1 | AS8: 1 | AT8: 1 | AU8: 1 | AV8: 1 | AW8: 1 | AX8: 1 | AY8: 1 | AZ8: 1 | BA8: 1 | BB8: =AVERAGE(B8:X8) -> 100.00% | BC8: =AVERAGE(Y8:BA8) -> 100.00%
A9: SR1 | B9: 1 | C9: 0 | D9: 0 | E9: 1 | F9: 1 | G9: 0 | H9: 1 | I9: 1 | J9: 1 | K9: 1 | L9: 1 | M9: 1 | N9: 1 | O9: 1 | P9: 1 | Q9: 0 | R9: 1 | S9: 1 | T9: 1 | U9: 1 | V9: 1 | W9: 0 | X9: 1 | Y9: 1 | Z9: 1 | AA9: 1 | AB9: 1 | AC9: 1 | AD9: 1 | AE9: 1 | AF9: 1 | AG9: 1 | AH9: 0 | AI9: 1 | AJ9: 0 | AK9: 1 | AL9: 1 | AM9: 1 | AN9: 0 | AO9: 0 | AP9: 1 | AQ9: 0 | AR9: 1 | AS9: 1 | AT9: 1 | AU9: 0 | AV9: 0 | AW9: 0 | AX9: 0 | AY9: 1 | AZ9: 1 | BA9: 1 | BB9: =AVERAGE(B9:X9) -> 78.26% | BC9: =AVERAGE(Y9:BA9) -> 68.97%
A10: Spirochaetes | B10: 0 | C10: 0 | D10: 0 | E10: 0 | F10: 0 | G10: 0 | H10: 0 | I10: 1 | J10: 1 | K10: 1 | L10: 1 | M10: 0 | N10: 0 | O10: 0 | P10: 0 | Q10: 0 | R10: 1 | S10: 0 | T10: 1 | U10: 0 | V10: 0 | W10: 0 | X10: 0 | Y10: 1 | Z10: 0 | AA10: 1 | AB10: 0 | AC10: 0 | AD10: 1 | AE10: 0 | AF10: 0 | AG10: 0 | AH10: 0 | AI10: 0 | AJ10: 0 | AK10: 1 | AL10: 0 | AM10: 0 | AN10: 0 | AO10: 0 | AP10: 0 | AQ10: 0 | AR10: 1 | AS10: 1 | AT10: 0 | AU10: 0 | AV10: 0 | AW10: 0 | AX10: 0 | AY10: 0 | AZ10: 0 | BA10: 1 | BB10: =AVERAGE(B10:X10) -> 26.09% | BC10: =AVERAGE(Y10:BA10) -> 24.14%
